[Event "GER-ch Youth U14 2019"]
[Site "Willingen"]
[Date "2019.06.11"]
[Round "4.15"]
[White "Kosev, Momchil"]
[Black "Weidenhoefer, Max"]
[Result "1-0"]
[ECO "A06"]
[WhiteElo "1827"]
[BlackElo "1787"]
[Annotator "NA"]
[PlyCount "105"]
[EventDate "2019.06.07"]
[EventType "swiss"]
[EventRounds "9"]
[EventCountry "GER"]
[SourceTitle "playchess.com"]
[Source "ChessBase"]
[SourceQuality "1"]
[TimeControl "40/5400+30:1800+30"]

1. Nf3 {[%emt 0:00:00]} d5 {[%emt 0:00:00]} 2. g3 {[%emt 0:00:00]} Nf6 {[%emt 0:00:01]} 3. Bg2 {[%emt 0:00:00]} e6 {[%emt 0:00:44]} 4. O-O {[%emt 0:00:00]} Be7 {[%emt 0:00:36]} 5. d3 {[%emt 0:00:00]} O-O {[%emt 0:01:03]} 6. Nbd2 {[%emt 0:00:17]} c5 {[%emt 0:02:25]} 7. Re1 {[%emt 0:02:13]} Nc6 {[%emt 0:01:38]} 8. e4 {[%emt 0:00:37]} dxe4 {[%emt 0:22:16]} 9. dxe4 {[%emt 0:03:23]} Nd4 {[%emt 0:02:01]} 10. Nxd4 {[%emt 0:02:42]} Qxd4 {[%emt 0:02:20]} 11. e5 {[%emt 0:01:36]} Ne8 {[%emt 0:06:12]} 12. Qe2 {[%emt 0:13:51]} Rb8 {[%emt 0:04:11]} 13. c3 {[%emt 0:08:22]} Qd8 {[%emt 0:03:13]} 14. Ne4 {[%emt 0:01:49]} b6 {[%emt 0:01:54]} 15. Bf4 {[%emt 0:02:05]} Bb7 {[%emt 0:00:51]} 16. Rad1 {[%emt 0:00:58]} Qc7 {[%emt 0:01:17]} 17. Qh5 {[%emt 0:04:42]} Bxe4 {[%emt 0:06:14]} 18. Bxe4 {[%emt 0:00:36]} g6 {[%emt 0:00:15]} 19. Qe2 {[%emt 0:10:13]} Ng7 {[%emt 0:00:34]} 20. Bf3 {[%emt 0:05:03]} Rbd8 {[%emt 0:01:16]} 21. h4 {[%emt 0:01:33]} h5 {[%emt 0:04:20]} 22. Qb5 {[%emt 0:07:48]} Rxd1 {[%emt 0:04:02]} 23. Rxd1 {[%emt 0:00:48]} Rd8 {[%emt 0:00:07]} 24. Ra1 {[%emt 0:06:49]} Nf5 {[%emt 0:15:55]} 25. a4 {[%emt 0:00:48]} a5 {[%emt 0:01:03]} 26. Rc1 {[%emt 0:03:50]} Qa7 {[%emt 0:01:38]} 27. Rc2 {[%emt 0:08:31]} Kg7 {[%emt 0:01:24]} 28. Rd2 {[%emt 0:00:20]} Rxd2 29. Bxd2 {[%emt 0:00:17]} Qc7 {[%emt 0:01:16]} 30. Bf4 {[%emt 0:00:20]} Qd8 {[%emt 0:01:49]} 31. Qc6 {[%emt 0:02:30]} Kf8 {[%emt 0:01:36]} 32. Qa8 {[%emt 0:02:45]} Qxa8 {[%emt 0:00:44]} 33. Bxa8 {[%emt 0:00:01]} Ke8 {[%emt 0:00:34]} 34. Bc6+ {[%emt 0:00:08]} Kf8 {[%emt 0:02:11]} 35. Kf1 {[%emt 0:01:33]} Bd8 {[%emt 0:01:39]} 36. Ke2 {[%emt 0:00:38]} Ne7 {[%emt 0:00:12]} 37. Bh6+ {[%emt 0:00:42]} Kg8 {[%emt 0:00:10]} 38. Bb7 {[%emt 0:01:00]} Bc7 {[%emt 0:00:15]} 39. Bf4 {[%emt 0:02:25]} Nd5 {[%emt 0:00:42]} 40. Bxd5 {[%emt 0:00:05]} exd5 {[%emt 0:00:05]} 41. e6 {[%emt 0:30:06]} Bd8 {[%emt 0:32:27]} 42. Bc7 {[%emt 0:00:05]} Be7 {[%emt 0:00:57]} 43. exf7+ {[%emt 0:00:07]} Kxf7 {[%emt 0:00:07]} 44. Bxb6 {[%emt 0:00:04]} Ke6 {[%emt 0:00:34]} 45. Bxa5 {[%emt 0:00:26]} Kd7 {[%emt 0:00:41]} 46. Kd3 {[%emt 0:02:25]} Kc6 {[%emt 0:00:14]} 47. b4 {[%emt 0:01:27]} cxb4 {[%emt 0:00:27]} 48. cxb4 {[%emt 0:00:24]} g5 {[%emt 0:00:12]} 49. hxg5 {[%emt 0:00:39]} Bxg5 {[%emt 0:00:08]} 50. b5+ {[%emt 0:01:31]} Kb7 {[%emt 0:00:54]} 51. Kd4 {[%emt 0:00:07]} h4 {[%emt 0:00:07]} 52. gxh4 {[%emt 0:00:17]} Bxh4 {[%emt 0:00:02]} 53. f3 {[%emt 0:00:13] normal} 1-0

[Event "GER-ch Youth U14 2019"]
[Site "Willingen"]
[Date "2019.06.11"]
[Round "4.16"]
[White "Tham, Nam"]
[Black "Kolmykov, Egor"]
[Result "1-0"]
[ECO "B28"]
[WhiteElo "1993"]
[BlackElo "1642"]
[Annotator "NA"]
[PlyCount "67"]
[EventDate "2019.06.07"]
[EventType "swiss"]
[EventRounds "9"]
[EventCountry "GER"]
[SourceTitle "playchess.com"]
[Source "ChessBase"]
[SourceQuality "1"]
[TimeControl "40/5400+30:1800+30"]

1. e4 {[%emt 0:00:00]} c5 {[%emt 0:00:00]} 2. Nf3 {[%emt 0:00:00]} a6 {[%emt 0:00:00]} 3. d4 {[%emt 0:00:00]} cxd4 {[%emt 0:00:00]} 4. Nxd4 {[%emt 0:00:00]} Nf6 {[%emt 0:00:00]} 5. Nc3 {[%emt 0:00:00]} e5 {[%emt 0:00:13]} 6. Nb3 {[%emt 0:00:01]} Bb4 {[%emt 0:00:19]} 7. Bc4 {[%emt 0:08:52]} Bxc3+ {[%emt 0:05:27]} 8. bxc3 {[%emt 0:01:14]} O-O {[%emt 0:01:22]} 9. O-O {[%emt 0:03:48]} d6 {[%emt 0:02:54]} 10. Re1 {[%emt 0:01:05]} b5 {[%emt 0:02:06]} 11. Bd5 {[%emt 0:00:07]} Nxd5 {[%emt 0:00:57]} 12. Qxd5 {[%emt 0:00:05]} Ra7 {[%emt 0:00:53]} 13. Ba3 {[%emt 0:00:07]} Rd7 {[%emt 0:00:47]} 14. c4 {[%emt 0:02:38]} Bb7 {[%emt 0:02:33]} 15. Qd3 {[%emt 0:00:08]} bxc4 {[%emt 0:03:58]} 16. Qxc4 {[%emt 0:00:05]} Qg5 {[%emt 0:01:17]} 17. Qe2 {[%emt 0:04:16]} Rc8 {[%emt 0:01:36]} 18. c4 {[%emt 0:00:58]} Nc6 {[%emt 0:02:17]} 19. Rad1 {[%emt 0:00:50]} Rcd8 {[%emt 0:01:43]} 20. Rd2 {[%emt 0:04:16]} a5 {[%emt 0:01:40]} 21. Qd1 {[%emt 0:08:51]} Bc8 {[%emt 0:03:27]} 22. Rd5 {[%emt 0:13:28]} a4 {[%emt 0:03:17]} 23. Na5 {[%emt 0:00:06]} Nd4 {[%emt 0:04:03]} 24. Qxd4 {[%emt 0:00:43]} Rc7 {[%emt 0:04:41]} 25. Qd3 {[%emt 0:01:17]} Be6 {[%emt 0:00:51]} 26. Rxd6 {[%emt 0:00:12]} Rxd6 {[%emt 0:00:39]} 27. Qxd6 {[%emt 0:00:04]} Rc8 {[%emt 0:00:49]} 28. Nc6 {[%emt 0:00:07]} Bh3 {[%emt 0:00:52]} 29. g3 {[%emt 0:00:15]} Re8 {[%emt 0:00:06]} 30. Bc1 {[%emt 0:12:37]} Qh5 {[%emt 0:00:59]} 31. Qd1 {[%emt 0:00:45]} Bg4 {[%emt 0:01:00]} 32. Qd3 {[%emt 0:00:13]} f5 {[%emt 0:01:49]} 33. Qd5+ {[%emt 0:07:21]} Kf8 {[%emt 0:01:02]} 34. Ba3+ {[%emt 0:00:26] normal} 1-0

[Event "GER-ch Youth U14 2019"]
[Site "Willingen"]
[Date "2019.06.11"]
[Round "4.17"]
[White "Matthaei, Jakob"]
[Black "Gutewort, Paul Emil"]
[Result "1-0"]
[ECO "B06"]
[WhiteElo "1666"]
[BlackElo "1708"]
[Annotator "NA"]
[PlyCount "67"]
[EventDate "2019.06.07"]
[EventType "swiss"]
[EventRounds "9"]
[EventCountry "GER"]
[SourceTitle "playchess.com"]
[Source "ChessBase"]
[SourceQuality "1"]
[TimeControl "40/5400+30:1800+30"]

1. e4 {[%emt 0:00:00]} g6 {[%emt 0:00:00]} 2. d4 {[%emt 0:00:11]} Bg7 {[%emt 0:00:00]} 3. Nc3 {[%emt 0:00:15]} d6 {[%emt 0:00:00]} 4. Be3 {[%emt 0:01:10]} Nc6 {[%emt 0:00:00]} 5. f4 Bd7 {[%emt 0:05:48]} 6. Nf3 {[%emt 0:04:54]} e5 {[%emt 0:01:09]} 7. Bc4 {[%emt 0:13:26]} exd4 {[%emt 0:01:39]} 8. Nxd4 {[%emt 0:00:02]} Nge7 {[%emt 0:00:08]} 9. O-O {[%emt 0:05:38]} O-O {[%emt 0:00:32]} 10. Qd2 {[%emt 0:01:48]} Kh8 {[%emt 0:00:35]} 11. f5 {[%emt 0:11:58]} Ne5 {[%emt 0:00:42]} 12. Be2 {[%emt 0:00:48]} Ng8 {[%emt 0:04:23]} 13. g4 {[%emt 0:08:00]} h6 {[%emt 0:04:11]} 14. Rf2 {[%emt 0:06:38]} Kh7 {[%emt 0:03:24]} 15. Raf1 {[%emt 0:02:27]} Bc6 {[%emt 0:03:42]} 16. fxg6+ {[%emt 0:03:25]} Kxg6 {[%emt 0:11:46]} 17. Nf5 {[%emt 0:02:03]} f6 {[%emt 0:03:21]} 18. h4 {[%emt 0:01:50]} Kh7 {[%emt 0:10:48]} 19. g5 {[%emt 0:02:39]} fxg5 {[%emt 0:01:47]} 20. hxg5 {[%emt 0:00:06]} Ng6 {[%emt 0:00:30]} 21. Nxg7 {[%emt 0:12:04]} Rxf2 {[%emt 0:00:08]} 22. Rxf2 {[%emt 0:00:04]} Kxg7 {[%emt 0:00:17]} 23. gxh6+ {[%emt 0:00:28]} Kh8 {[%emt 0:00:26]} 24. Bd4+ {[%emt 0:01:22]} Ne5 {[%emt 0:00:13]} 25. Qf4 {[%emt 0:03:24]} Qe8 {[%emt 0:00:38]} 26. h7 {[%emt 0:04:17]} Kxh7 {[%emt 0:01:33]} 27. Rh2+ {[%emt 0:00:36]} Kg7 {[%emt 0:00:23]} 28. Rg2+ {[%emt 0:01:41]} Kh7 {[%emt 0:00:46]} 29. Bxe5 {[%emt 0:04:15]} dxe5 {[%emt 0:01:13]} 30. Qf5+ {[%emt 0:00:09]} Kh8 {[%emt 0:01:19]} 31. Rh2+ {[%emt 0:00:15]} Nh6 {[%emt 0:00:30]} 32. Rxh6+ {[%emt 0:00:11]} Kg7 {[%emt 0:00:21]} 33. Rh7+ {[%emt 0:00:16]} Kg8 {[%emt 0:00:07]} 34. Bc4+ {[%emt 0:00:08] normal} 1-0

[Event "GER-ch Youth U14 2019"]
[Site "Willingen"]
[Date "2019.06.11"]
[Round "4.18"]
[White "Sinnhoefer, Joshua"]
[Black "Schulemann, Gero"]
[Result "1-0"]
[ECO "B43"]
[WhiteElo "1466"]
[BlackElo "1862"]
[Annotator "NA"]
[PlyCount "95"]
[EventDate "2019.06.07"]
[EventType "swiss"]
[EventRounds "9"]
[EventCountry "GER"]
[SourceTitle "playchess.com"]
[Source "ChessBase"]
[SourceQuality "1"]
[TimeControl "40/5400+30:1800+30"]

1. e4 {[%emt 0:00:00]} c5 {[%emt 0:00:00]} 2. Nf3 {[%emt 0:00:09]} e6 {[%emt 0:00:00]} 3. d4 {[%emt 0:00:23]} cxd4 {[%emt 0:00:00]} 4. Nxd4 {[%emt 0:00:09]} a6 {[%emt 0:00:00]} 5. Nc3 {[%emt 0:00:19]} b5 {[%emt 0:00:38]} 6. Bd3 {[%emt 0:01:21]} Bb7 {[%emt 0:00:31]} 7. f4 {[%emt 0:02:44]} Nf6 {[%emt 0:02:22]} 8. e5 {[%emt 0:00:43]} b4 {[%emt 0:04:03]} 9. Na4 {[%emt 0:00:42]} Nd5 {[%emt 0:02:12]} 10. Be4 {[%emt 0:01:20]} Qc7 {[%emt 0:03:02]} 11. O-O {[%emt 0:01:33]} Be7 {[%emt 0:09:40]} 12. Kh1 {[%emt 0:03:16]} Ne3 {[%emt 0:05:29]} 13. Bxe3 {[%emt 0:00:55]} Bxe4 {[%emt 0:00:03]} 14. c3 {[%emt 0:12:07]} Nc6 {[%emt 0:06:47]} 15. Nf3 {[%emt 0:07:05]} Rb8 {[%emt 0:02:49]} 16. b3 O-O {[%emt 0:05:06]} 17. c4 {[%emt 0:18:35]} d6 {[%emt 0:02:06]} 18. exd6 {[%emt 0:03:13]} Bxd6 {[%emt 0:00:05]} 19. Nd4 {[%emt 0:00:08]} Nxd4 {[%emt 0:03:04]} 20. Qxd4 {[%emt 0:00:10]} Ba8 {[%emt 0:04:29]} 21. Rac1 {[%emt 0:09:49]} Rfd8 {[%emt 0:03:11]} 22. Qb2 {[%emt 0:02:30]} Be7 {[%emt 0:11:49]} 23. Qf2 {[%emt 0:04:01]} Qc6 {[%emt 0:02:46]} 24. Rfd1 {[%emt 0:02:41]} Bh4 {[%emt 0:12:30]} 25. Qg1 {[%emt 0:01:13]} Rxd1 {[%emt 0:02:31]} 26. Rxd1 {[%emt 0:00:35]} Rd8 {[%emt 0:00:20]} 27. Rxd8+ {[%emt 0:01:14]} Bxd8 {[%emt 0:02:59]} 28. Qf2 {[%emt 0:02:57]} Qe4 {[%emt 0:01:08]} 29. Qd2 {[%emt 0:00:22]} Bc7 {[%emt 0:00:55]} 30. Nc5 {[%emt 0:00:31]} Qc6 {[%emt 0:00:49]} 31. h3 {[%emt 0:02:43]} h6 {[%emt 0:00:55]} 32. Nd3 {[%emt 0:00:30]} a5 {[%emt 0:01:13]} 33. Ne1 {[%emt 0:00:52]} Qe4 {[%emt 0:05:47]} 34. Nf3 {[%emt 0:03:42]} Bc6 {[%emt 0:02:28]} 35. Nd4 {[%emt 0:03:43]} Qb1+ {[%emt 0:00:46]} 36. Kh2 {[%emt 0:00:13]} Be4 {[%emt 0:00:16]} 37. Nb5 {[%emt 0:00:25]} a4 {[%emt 0:00:48]} 38. Nxc7 {[%emt 0:01:00]} axb3 {[%emt 0:00:11]} 39. axb3 {[%emt 0:00:06]} Qxb3 {[%emt 0:00:26]} 40. Na6 {[%emt 0:00:14]} Qxc4 {[%emt 0:00:14]} 41. Nxb4 {[%emt 0:30:15]} f5 {[%emt 0:32:47]} 42. Na2 {[%emt 0:01:57]} Bb7 {[%emt 0:01:16]} 43. Qb4 {[%emt 0:01:40]} Qc6 {[%emt 0:00:25]} 44. Qd2 {[%emt 0:00:24]} Kf7 {[%emt 0:01:03]} 45. Nb4 {[%emt 0:00:08]} Qe4 {[%emt 0:00:59]} 46. Nd3 {[%emt 0:00:09]} Ba6 {[%emt 0:01:23]} 47. Nc5 {[%emt 0:00:28]} Qc4 {[%emt 0:00:10]} 48. Qd7+ {[%emt 0:01:15] normal} 1-0

[Event "GER-ch Youth U14 2019"]
[Site "Willingen"]
[Date "2019.06.11"]
[Round "4.19"]
[White "Wellssow, Keoki"]
[Black "Haufe, Laurin"]
[Result "0-1"]
[ECO "A15"]
[WhiteElo "1509"]
[BlackElo "1995"]
[Annotator "NA"]
[PlyCount "107"]
[EventDate "2019.06.07"]
[EventType "swiss"]
[EventRounds "9"]
[EventCountry "GER"]
[SourceTitle "playchess.com"]
[Source "ChessBase"]
[SourceQuality "1"]
[TimeControl "40/5400+30:1800+30"]

1. c4 {[%emt 0:00:00]} Nf6 {[%emt 0:00:00]} 2. g3 {[%emt 0:00:00]} g6 {[%emt 0:00:00]} 3. Bg2 {[%emt 0:00:28]} Bg7 {[%emt 0:00:00]} 4. Nc3 {[%emt 0:00:40]} c5 {[%emt 0:00:28]} 5. e3 {[%emt 0:01:29]} O-O {[%emt 0:00:53]} 6. Nge2 {[%emt 0:01:38]} Nc6 {[%emt 0:00:41]} 7. O-O {[%emt 0:01:44]} d6 {[%emt 0:01:10]} 8. d3 {[%emt 0:01:56]} a6 {[%emt 0:04:21]} 9. a3 {[%emt 0:08:40]} Rb8 {[%emt 0:02:02]} 10. Rb1 {[%emt 0:05:43]} Bd7 {[%emt 0:06:10]} 11. b4 {[%emt 0:07:07]} b6 {[%emt 0:03:34]} 12. b5 {[%emt 0:05:37]} axb5 {[%emt 0:02:35]} 13. Nxb5 {[%emt 0:01:41]} Na5 {[%emt 0:04:56]} 14. Bd2 {[%emt 0:06:31]} Bg4 {[%emt 0:14:45]} 15. h3 {[%emt 0:05:18]} Bc8 {[%emt 0:01:34]} 16. Na7 {[%emt 0:15:43]} Qc7 {[%emt 0:07:04]} 17. Nxc8 {[%emt 0:08:53]} Rfxc8 {[%emt 0:01:36]} 18. Nc3 {[%emt 0:04:26]} Nc6 {[%emt 0:04:22]} 19. Nb5 {[%emt 0:04:30]} Qd7 {[%emt 0:02:31]} 20. Bxc6 {[%emt 0:05:20]} Rxc6 {[%emt 0:01:56]} 21. Kh2 {[%emt 0:00:50]} Rcc8 {[%emt 0:02:05]} 22. Rb3 {[%emt 0:03:12]} h5 {[%emt 0:01:11]} 23. f4 {[%emt 0:01:24]} e6 24. Qb1 {[%emt 0:04:11]} Rb7 {[%emt 0:05:34]} 25. Nc3 {[%emt 0:02:39]} Qc6 {[%emt 0:01:24]} 26. e4 {[%emt 0:02:48]} Kh7 {[%emt 0:06:03]} 27. e5 {[%emt 0:00:25]} dxe5 {[%emt 0:01:31]} 28. fxe5 {[%emt 0:00:05]} Nd7 {[%emt 0:00:21]} 29. Bf4 {[%emt 0:00:51]} Nxe5 {[%emt 0:07:35]} 30. Ne4 {[%emt 0:00:15]} f5 {[%emt 0:04:53]} 31. Ng5+ {[%emt 0:00:27]} Kg8 {[%emt 0:00:05]} 32. Qd1 {[%emt 0:00:42]} Nf7 {[%emt 0:02:34]} 33. Nxf7 {[%emt 0:00:30]} Kxf7 {[%emt 0:01:05]} 34. Re1 {[%emt 0:00:13]} Re8 {[%emt 0:00:46]} 35. Be5 {[%emt 0:00:34]} Bxe5 {[%emt 0:00:43]} 36. Rxe5 {[%emt 0:00:05]} Qd6 {[%emt 0:00:59]} 37. Qe2 {[%emt 0:00:35]} Qd4 {[%emt 0:00:49]} 38. Qe3 {[%emt 0:00:36]} Qa1 {[%emt 0:02:07]} 39. Rb5 {[%emt 0:00:44]} Ree7 {[%emt 0:01:16]} 40. d4 {[%emt 0:00:59]} cxd4 {[%emt 0:02:18]} 41. Qh6 {[%emt 0:02:16]} Qa2+ {[%emt 0:02:34]} 42. Kg1 {[%emt 0:00:35]} Qxc4 {[%emt 0:06:45]} 43. Qh7+ {[%emt 0:02:51]} Kf6 {[%emt 0:02:23]} 44. Qh8+ {[%emt 0:02:20]} Kg5 {[%emt 0:05:14]} 45. h4+ {[%emt 0:01:58]} Kg4 {[%emt 0:00:09]} 46. Qh6 {[%emt 0:01:25]} Rbc7 {[%emt 0:07:37]} 47. Qf4+ {[%emt 0:03:21]} Kh3 {[%emt 0:00:11]} 48. Kf2 {[%emt 0:07:38]} Qd3 {[%emt 0:06:16]} 49. Rb2 {[%emt 0:04:01]} Rc3 {[%emt 0:01:56]} 50. Rd2 {[%emt 0:07:22]} Qxg3+ {[%emt 0:03:55]} 51. Qxg3+ {[%emt 0:00:02]} Rxg3 {[%emt 0:00:06]} 52. Rxd4 {[%emt 0:00:21]} Rg4 {[%emt 0:00:28]} 53. Rd3+ {[%emt 0:01:16]} Kxh4 {[%emt 0:00:15]} 54. Rb3 {[%emt 0:01:12] normal} 0-1

[Event "GER-ch Youth U14 2019"]
[Site "Willingen"]
[Date "2019.06.11"]
[Round "4.20"]
[White "Wang, Xinyuan"]
[Black "Seng, Alexander"]
[Result "1/2-1/2"]
[ECO "E81"]
[WhiteElo "2060"]
[BlackElo "1505"]
[Annotator "NA"]
[PlyCount "74"]
[EventDate "2019.06.07"]
[EventType "swiss"]
[EventRounds "9"]
[EventCountry "GER"]
[SourceTitle "playchess.com"]
[Source "ChessBase"]
[SourceQuality "1"]
[TimeControl "40/5400+30:1800+30"]

1. d4 {[%emt 0:00:00]} Nf6 {[%emt 0:00:00]} 2. c4 {[%emt 0:00:00]} g6 {[%emt 0:00:00]} 3. Nc3 {[%emt 0:00:02]} Bg7 {[%emt 0:00:00]} 4. e4 {[%emt 0:00:08]} d6 {[%emt 0:00:08]} 5. f3 {[%emt 0:00:07]} O-O {[%emt 0:00:20]} 6. Be3 {[%emt 0:00:22]} Nbd7 {[%emt 0:00:17]} 7. Nge2 {[%emt 0:00:16]} c5 {[%emt 0:00:13]} 8. Qd2 {[%emt 0:00:33]} Qa5 {[%emt 0:00:31]} 9. g4 {[%emt 0:03:17]} a6 {[%emt 0:01:43]} 10. Nc1 {[%emt 0:02:46]} cxd4 {[%emt 0:01:35]} 11. Bxd4 {[%emt 0:00:18]} Nc5 {[%emt 0:00:30]} 12. g5 {[%emt 0:03:19]} Nfd7 {[%emt 0:05:35]} 13. Bxg7 {[%emt 0:00:18]} Kxg7 {[%emt 0:00:09]} 14. a3 {[%emt 0:00:12]} Ne6 {[%emt 0:05:56]} 15. f4 {[%emt 0:02:27]} f5 {[%emt 0:04:18]} 16. b4 {[%emt 0:10:55]} Qd8 {[%emt 0:02:14]} 17. exf5 {[%emt 0:01:03]} Rxf5 {[%emt 0:01:29]} 18. Bh3 {[%emt 0:01:18]} Qf8 {[%emt 0:11:10]} 19. Bxf5 {[%emt 0:02:38]} Qxf5 {[%emt 0:00:06]} 20. O-O {[%emt 0:05:29]} Nb6 {[%emt 0:01:07]} 21. Qd3 {[%emt 0:01:47]} Qxd3 {[%emt 0:01:33]} 22. Nxd3 {[%emt 0:00:08]} Nxc4 {[%emt 0:00:09]} 23. Nd5 {[%emt 0:01:27]} Bd7 {[%emt 0:06:16]} 24. Rae1 {[%emt 0:08:00]} Re8 {[%emt 0:02:00]} 25. a4 {[%emt 0:05:20]} Kf7 {[%emt 0:06:50]} 26. a5 {[%emt 0:14:49]} Ng7 {[%emt 0:08:24]} 27. Nc1 {[%emt 0:12:26]} Bc6 {[%emt 0:04:29]} 28. Ne3 {[%emt 0:01:31]} Nd2 {[%emt 0:01:00]} 29. Ng4 {[%emt 0:06:11]} Nf5 {[%emt 0:09:27]} 30. Ne2 {[%emt 0:07:28]} Nxf1 {[%emt 0:02:01]} 31. Kxf1 {[%emt 0:00:10]} Bd7 {[%emt 0:03:02]} 32. Nc3 {[%emt 0:05:00]} Be6 {[%emt 0:01:54]} 33. Ne4 {[%emt 0:01:43]} Rc8 {[%emt 0:03:49]} 34. Nh6+ {[%emt 0:00:24]} Nxh6 {[%emt 0:01:51]} 35. gxh6 {[%emt 0:00:07]} Bc4+ {[%emt 0:02:47]} 36. Kf2 {[%emt 0:00:24]} Rc7 {[%emt 0:02:58]} 37. Ng5+ {[%emt 0:00:48]} Kg8 {[%emt 0:04:34] normal} 1/2-1/2

[Event "GER-ch Youth U14 2019"]
[Site "Willingen"]
[Date "2019.06.11"]
[Round "4.21"]
[White "Divry, Alexandre"]
[Black "May, Ben-Iven"]
[Result "0-1"]
[ECO "E92"]
[WhiteElo "1654"]
[BlackElo "1692"]
[Annotator "NA"]
[PlyCount "72"]
[EventDate "2019.06.07"]
[EventType "swiss"]
[EventRounds "9"]
[EventCountry "GER"]
[SourceTitle "playchess.com"]
[Source "ChessBase"]
[SourceQuality "1"]
[TimeControl "40/5400+30:1800+30"]

1. d4 {[%emt 0:00:00]} Nf6 {[%emt 0:00:00]} 2. c4 {[%emt 0:00:00]} g6 {[%emt 0:00:00]} 3. Nc3 {[%emt 0:00:00]} Bg7 {[%emt 0:00:00]} 4. e4 {[%emt 0:00:00]} d6 {[%emt 0:00:00]} 5. Be2 {[%emt 0:00:01]} O-O {[%emt 0:00:00]} 6. Nf3 {[%emt 0:00:01]} e5 {[%emt 0:00:35]} 7. dxe5 {[%emt 0:01:07]} dxe5 {[%emt 0:00:08]} 8. Qxd8 {[%emt 0:00:04]} Rxd8 {[%emt 0:00:03]} 9. Bg5 {[%emt 0:00:57]} Re8 {[%emt 0:08:56]} 10. Nd5 {[%emt 0:01:44]} Nxd5 {[%emt 0:00:11]} 11. cxd5 {[%emt 0:00:01]} c6 {[%emt 0:01:27]} 12. Bc4 {[%emt 0:01:27]} Bd7 {[%emt 0:04:40]} 13. O-O {[%emt 0:02:51]} Na6 {[%emt 0:07:20]} 14. Bxa6 {[%emt 0:03:52]} bxa6 {[%emt 0:00:05]} 15. d6 {[%emt 0:05:52]} f6 {[%emt 0:02:03]} 16. Be3 {[%emt 0:06:11]} f5 {[%emt 0:07:14]} 17. Nd2 {[%emt 0:04:37]} Re6 {[%emt 0:09:49]} 18. Bc5 {[%emt 0:03:21]} Rb8 {[%emt 0:00:59]} 19. Nc4 {[%emt 0:01:24]} Rb7 {[%emt 0:07:36]} 20. f3 {[%emt 0:11:05]} Re8 {[%emt 0:12:36]} 21. Ba3 {[%emt 0:10:30]} Rb5 {[%emt 0:06:30]} 22. Rfd1 {[%emt 0:06:59]} Rf8 {[%emt 0:07:01]} 23. Nd2 {[%emt 0:05:13]} Bh6 {[%emt 0:03:18]} 24. Nb3 {[%emt 0:03:26]} Be3+ {[%emt 0:00:36]} 25. Kf1 {[%emt 0:04:11]} fxe4 {[%emt 0:03:07]} 26. Ke2 {[%emt 0:01:16]} Bb6 {[%emt 0:00:42]} 27. Nd2 {[%emt 0:02:46]} exf3+ {[%emt 0:00:54]} 28. Nxf3 {[%emt 0:00:02]} e4 {[%emt 0:01:22]} 29. Nd4 {[%emt 0:02:03]} Bg4+ {[%emt 0:02:02]} 30. Ke1 {[%emt 0:00:27]} Rd5 {[%emt 0:01:38]} 31. Nxc6 Bf2+ {[%emt 0:02:31]} 32. Kf1 {[%emt 0:08:22]} e3 {[%emt 0:08:20]} 33. Ne7+ {[%emt 0:05:20]} Kg7 {[%emt 0:00:18]} 34. Re1 {[%emt 0:04:49]} Bxe1+ {[%emt 0:00:01]} 35. Kxe1 {[%emt 0:02:13]} e2 {[%emt 0:00:17]} 36. Nf5+ {[%emt 0:01:53]} Rfxf5 {[%emt 0:00:15] normal} 0-1

[Event "GER-ch Youth U14 2019"]
[Site "Willingen"]
[Date "2019.06.11"]
[Round "4.22"]
[White "Straub, Benno"]
[Black "Wildermuth, Nikolas Karl"]
[Result "1-0"]
[ECO "B22"]
[WhiteElo "1490"]
[BlackElo "1748"]
[Annotator "NA"]
[PlyCount "25"]
[EventDate "2019.06.07"]
[EventType "swiss"]
[EventRounds "9"]
[EventCountry "GER"]
[SourceTitle "playchess.com"]
[Source "ChessBase"]
[SourceQuality "1"]
[TimeControl "40/5400+30:1800+30"]

1. e4 {[%emt 0:00:00]} c5 {[%emt 0:00:00]} 2. c3 {[%emt 0:00:00]} Nf6 {[%emt 0:00:00]} 3. e5 {[%emt 0:00:00]} Nd5 {[%emt 0:00:00]} 4. d4 {[%emt 0:00:00]} cxd4 {[%emt 0:00:00]} 5. cxd4 {[%emt 0:00:00]} e6 {[%emt 0:00:07]} 6. Nf3 {[%emt 0:00:13]} b6 {[%emt 0:00:13]} 7. Be2 {[%emt 0:00:34]} Bb7 {[%emt 0:00:17]} 8. O-O {[%emt 0:00:08]} d6 {[%emt 0:00:12]} 9. Nc3 {[%emt 0:00:55]} Nxc3 {[%emt 0:02:01]} 10. bxc3 {[%emt 0:00:06]} Nd7 {[%emt 0:01:51]} 11. Bf4 {[%emt 0:00:33]} dxe5 {[%emt 0:01:17]} 12. Nxe5 {[%emt 0:00:51]} Be7 {[%emt 0:02:39]} 13. Bb5 {[%emt 0:00:27] normal} 1-0